Cogmind - Beta 14 @@@ ROGUE MODE // 2025.03.19 @ 21:29:36 Player: Cog on my mind Result: Assimilated 0b10! Performance ------------- Evolutions (9) 4500 Regions Visited (28) 5600 Robots Destroyed (472) 2360 Value Destroyed (28693) 28693 Prototype IDs (71) 1420 Alien Tech Used (3) 600 Bonus (33876) 33876 TOTAL SCORE: 77049 Bonus ------- Triggered High Security 1000 High Alert Combat Kills 9298 Follower Combat Kills 8466 Entered Garrisons 1600 Used RIF Installer 4500 Scanned by Researcher 500 Met MAIN.C 5000 Used 0b10 Conduit 2000 Win 3000 Friendly Fire -1488 Cogmind --------- Core Integrity 888/1600 Matter 265/300 Energy 8/100 System Corruption 20% Temperature Cool (4) Movement Flying (30) Location 0b10 Command Parts ------- > --- POWER (2) -------- (None) > --- PROPULSION (8) --- Diametric Drive > --- UTILITY (12) ----- Advanced Targeting Computer Advanced Target Analyzer > --- WEAPON (3) ------- (None) > --- INVENTORY (5) ---- Xenon Bombardment Thruster Xenon Bombardment Thruster Core Cannon Peak State ------------ > --- POWER ------------ Improved Quantum Reactor Improved Quantum Reactor > --- PROPULSION ------- Armored Medium Treads Armored Medium Treads Heavy Siege Treads Armored Heavy Treads Armored Heavy Treads > --- UTILITY ---------- Advanced Cooling System Huge Storage Unit Experimental Optical Array Seismic Detector Advanced Targeting Computer Advanced Weapon Cycler Heavy Regenerative Plating SHELL Armor AEGIS Remote Shield > --- WEAPON ----------- Enhanced Nova Cannon Perforator > --- INVENTORY -------- Compact Wheel Centrium Wheel Centrium Wheel High-density Centrium Wheel Advanced Target Analyzer Experimental ECM Suite Advanced Focal Shield Advanced EM Disruption Field Relay Coupler [Duelist] Long-range Tractor Beam Dimensional Node Initializer Transdimensional Reconstructor Transdimensional Reconstructor Transdimensional Reconstructor High-powered Transdimensional Reconstructor Core Cannon Hypervelocity Multirail Z-bomb Delivery System Advanced Remote Datajack Vibroblade Portable AFG [Rating: 217] Favorites ----------- Power Cold Fusion Reactor Engine F-cell Engine Reactor Cold Fusion Reactor Propulsion Compact Wheel Treads Light Treads Leg Flexi-carbon Leg Wheel Compact Wheel Hover Unit Antigrav Array Flight Unit Xenon Bombardment Thruster Utility Huge Storage Unit Device Seismic Detector Storage Huge Storage Unit Processor Advanced Signal Interpreter Hackware Relay Coupler [Grunt] Protection Improved Medium Armor Plating Weapon Shotgun Energy Gun Improved EM Shotgun Energy Cannon Enhanced Nova Cannon Ballistic Gun Shotgun Ballistic Cannon Heavy Linear Accelerator Launcher Improved Grenade Launcher Special Weapon Remote Datajack Slashing Weapon Vibroblade Piercing Weapon Plasma Lance Special Melee Weapon Improved Datajack Build | -11 -10 -10 -9 -9 -8 -8 -7 -7 -7 -7 -6 -6 -6 -6 -5 -5 -5 -5 -5 -5 -4 -4 -3 -3 -2 -2 -1 -1 ------- Run | Yrd Mat Min Mat Sto Mat Gar Fac Gar Fac Gar Fac Was Fac Gar Fac Gar Fac Gar Fac Gar Fac Gar Res Tes Res Qua Acc Com Slots Evolved 18 | . . . 2 . 2 . 2 . . . 2 . . . 2 . . . . . 2 . 2 . 2 . 2 . Power 1 | . . . . . . . . . . . . . . . . . . . . . . . . . 1 . . . Propulsion 6 | . . . 1 . . . 1 . . . . . . . . . . . . . . . 1 . 1 . 2 . Utility 10 | . . . . . 2 . 1 . . . 2 . . . 2 . . . . . 2 . 1 . . . . . Weapon 1 | . . . 1 . . . . . . . . . . . . . . . . . . . . . . . . . Parts Attached 514 | 7 5 . 13 9 25 17 7 23 1 14 7 3 5 14 8 10 18 24 37 14 27 12 43 43 32 31 39 26 Power 29 | 1 1 . 3 2 1 . 1 . . . . . 1 . . . 2 . 1 1 . . 2 2 5 1 3 2 Engine 10 | 1 1 . 3 1 1 . . . . . . . . . . . 1 . 1 1 . . . . . . . . Core . | . . . . . . . . . . . . . . . . . . . . . . . . . . . . . Reactor 19 | . . . . 1 . . 1 . . . . . 1 . . . 1 . . . . . 2 2 5 1 3 2 Propulsion 112 | 2 . . 5 4 9 5 3 4 . 4 4 . . . 2 . 4 3 12 5 6 4 11 3 3 2 8 9 Treads 43 | 2 . . 5 4 4 4 1 3 . 4 . . . . . . . . . 2 . 2 3 . 1 . 7 1 Leg 3 | . . . . . . . . . . . . . . . . . . 2 . 1 . . . . . . . . Wheel 55 | . . . . . 5 1 2 1 . . 4 . . . 2 . 4 1 12 2 6 2 5 3 2 2 1 . Hover 3 | . . . . . . . . . . . . . . . . . . . . . . . 3 . . . . . Flight 8 | . . . . . . . . . . . . . . . . . . . . . . . . . . . . 8 Utility 245 | 2 2 . 2 . 8 3 1 12 1 8 2 1 4 10 6 10 6 17 13 7 16 4 12 21 18 27 25 7 Device 107 | 1 . . . . 5 1 1 2 . 1 . . . 2 2 . . 1 1 1 3 . 3 15 16 24 24 4 Storage 8 | 1 1 . 1 . 1 . . . . . . . . . . . . . . 1 . . 1 . . 1 . 1 Processor 10 | . . . . . 1 . . . . . . . . . . . . . 1 . . . 4 . 2 . 1 1 Hackware 75 | . . . . . 1 . . 8 1 7 . 1 4 6 2 5 3 12 8 2 8 1 3 2 . 1 . . Protection 45 | . 1 . 1 . . 2 . 2 . . 2 . . 2 2 5 3 4 3 3 5 3 1 4 . 1 . 1 Artifact . | . . . . . . . . . . . . . . . . . . . . . . . . . . . . . Weapon 128 | 2 2 . 3 3 7 9 2 7 . 2 1 2 . 4 . . 6 4 11 1 5 4 18 17 6 1 3 8 Energy Gun 19 | 1 . . 1 3 5 4 . 1 . 1 . . . . . . . . 2 . . . . 1 . . . . Energy Cannon 12 | . . . . . . . . . . . . . . . . . . . . . . . 3 . 1 1 2 5 Ballistic Gun 26 | 1 2 . 2 . 2 3 2 1 . . . . . . . . . . 2 1 2 2 1 4 . . . 1 Ballistic Cannon 30 | . . . . . . . . 3 . . 1 1 . 3 . . . 1 2 . . 1 9 4 3 . 1 1 Launcher 4 | . . . . . . 1 . . . . . . . . . . . . . . . . . 2 1 . . . Special Weapon 15 | . . . . . . 1 . 2 . 1 . 1 . . . . 4 . 1 . 2 . 1 2 . . . . Impact Weapon . | . . . . . . . . . . . . . . . . . . . . . . . . . . . . . Slashing Weapon 14 | . . . . . . . . . . . . . . 1 . . 1 1 . . 1 1 3 4 1 . . 1 Piercing Weapon 3 | . . . . . . . . . . . . . . . . . . 2 1 . . . . . . . . . Special Melee Weapon 5 | . . . . . . . . . . . . . . . . . 1 . 3 . . . 1 . . . . . Unidentified Prototypes 41 | . . . 1 1 3 . . . . . . . . . 1 . 1 2 2 . 1 . 3 16 4 3 2 1 Parts Lost 86 | . . . . 2 4 7 1 1 . . 1 . . 1 . 1 2 6 3 9 6 10 7 4 1 3 4 13 Power 7 | . . . . . 1 . 1 . . . . . . . . . . . . 1 . 1 . . . . 2 1 Propulsion 35 | . . . . . . 3 . 1 . . 1 . . . . . 2 3 1 5 4 5 1 2 . 1 1 5 Utility 26 | . . . . . . 1 . . . . . . . 1 . . . 1 2 1 2 3 5 1 1 2 1 5 Weapon 18 | . . . . 2 3 3 . . . . . . . . . 1 . 2 . 2 . 1 1 1 . . . 2 Highest Loss Streak 9 | . . . . 2 2 5 1 1 . . 1 . . 1 . 1 1 3 2 4 4 9 6 1 1 1 1 8 To Critical Strikes . | . . . . . . . . . . . . . . . . . . . . . . . . . . . . . Average Slot Usage (%) 87 | . 100 100 99 99 98 99 99 94 92 92 84 86 86 92 84 82 84 85 97 87 87 49 63 77 80 80 72 66 Engine 3 | . 14 14 10 10 9 9 5 . . . . . . . . . . 5 5 5 5 2 . . . . . . Reactor 3 | . . . . . . . 1 7 7 7 6 6 6 6 5 5 4 . . . . . 3 4 7 8 7 7 Treads 10 | . 28 28 33 32 15 24 22 15 15 15 3 . . . . . . . . 3 1 3 6 . . . 12 18 Wheel 12 | . . . . . 11 2 7 14 15 15 22 26 26 26 19 17 16 12 21 11 18 5 6 21 24 24 7 . Device 4 | . 2 . . . 5 9 15 4 . 2 . . . 4 . . . . . . 4 2 9 8 10 13 17 13 Storage 6 | . 14 14 11 11 9 9 7 7 7 7 6 6 6 6 5 5 5 5 5 5 5 2 . 4 4 4 4 3 Processor 2 | . . . . . 3 . . . . . . . . . . . . . 2 . . . 11 11 11 8 9 12 Hackware 17 | . . . . . 8 9 7 19 23 27 26 26 26 32 33 34 36 42 37 35 35 23 5 9 2 . . . Protection 6 | . 11 14 11 11 9 8 7 2 7 . 4 6 6 1 4 6 9 4 5 3 3 1 3 6 8 10 6 3 Energy Gun 3 | . 2 . . 31 25 15 7 2 . . . 1 . . . . . . . . . . . . . . . . Ballistic Gun 5 | . 25 28 33 1 . 11 15 5 . . . . . . . . . . . 3 3 1 . 1 . . . . Ballistic Cannon 3 | . . . . . . . . 7 7 7 6 4 6 5 5 5 5 3 3 2 . . 8 3 3 4 3 1 Special Weapon 2 | . . . . . . . . 4 7 6 6 6 6 6 5 4 2 2 . . 3 2 . . . . . . Peak Build Rating 217 | 7 11 11 21 26 34 34 39 50 41 44 65 65 67 67 82 82 83 87 86 74 84 84 136 162 183 186 217 194 Average Rating 73 | 5 10 11 18 23 31 32 37 41 38 42 57 59 64 62 78 77 78 81 73 70 75 44 99 130 172 178 196 154 On Entrance 63 | . 7 11 11 21 24 34 33 39 41 38 43 65 63 67 65 82 74 83 85 72 73 71 2 89 136 173 186 155 Naked Turns 291 | . . . . . . . . . . . . . . . . . . . . . . 241 50 . . . . . Heaviest Build 218 | 14 36 36 60 60 102 106 112 121 115 108 137 137 137 137 138 137 138 131 113 178 185 179 151 178 212 218 217 188 Greatest Support 244 | 40 40 40 63 63 63 60 80 26 26 26 56 52 52 52 56 56 60 60 64 58 46 30 95 84 100 100 244 240 Greatest Overweight (x) 37 | . . . . . 6 4 6 4 4 4 6 37 2 2 2 2 3 4 3 10 10 8 4 2 2 2 2 1 Average Overweight (x) 1 | . . . . . 2 1 4 3 4 4 2 3 2 1 2 2 2 2 1 5 3 3 . 1 1 2 . . Largest Inventory Capacity 30 | 8 15 15 20 20 25 25 25 25 25 25 25 25 25 25 25 25 25 25 25 30 30 30 25 25 25 25 25 25 Average Capacity 22 | 7 11 15 18 20 23 25 25 25 25 25 25 25 25 25 25 25 25 25 25 29 30 19 6 25 25 25 25 21 Most Carried 30 | 2 12 13 20 20 24 25 25 25 25 25 25 25 24 25 25 25 25 25 25 30 30 30 10 24 25 25 25 25 Average Carried 20 | 1 8 12 17 18 20 23 23 24 24 24 23 23 22 24 23 23 24 23 24 23 26 18 5 17 24 24 22 19 Final Capacity 30 | 8 15 15 20 20 25 25 25 25 25 25 25 25 25 25 25 25 25 25 25 30 30 5 25 25 25 25 25 5 Final Carried 30 | 2 12 13 20 19 23 25 24 25 25 25 24 23 24 25 23 25 25 25 20 30 30 5 10 24 25 25 25 4 Class Distribution -------------------- 12% | Bothacker-Tank 11% | Mutant 9% | Botlord-Mutant 9% | Bothacker-Gunner 8% | Tank 7% | Botlord-Tank 7% | Scavenger-Mutant 5% | Scavenger-Tank 4% | Commander-Mutant 4% | Gunner 3% | Scavenger-Assassin 3% | Botlord-Gunner 3% | Hauler-Mutant Dominant Class ---------------- Mutant | -10/Materials Mutant | -10/Mines Tank | -9/Materials Tank | -9/Storage Scavenger-Tank | -8/Materials Bothacker-Tank | -8/Garrison Bothacker-Tank | -7/Factory Bothacker-Gunner | -7/Garrison Bothacker-Tank | -7/Factory Bothacker-Gunner | -7/Garrison Bothacker-Tank | -6/Factory Bothacker-Tank | -6/Waste Bothacker-Tank | -6/Factory Botlord-Gunner | -6/Garrison Botlord-Tank | -5/Factory Botlord-Tank | -5/Garrison Botlord-Tank | -5/Factory Commander-Mutant | -5/Garrison Botlord-Mutant | -5/Factory Hauler-Mutant | -5/Garrison Botlord-Mutant | -4/Factory Mutant | -4/Garrison Scavenger-Assassin | -3/Research Scavenger-Mutant | -3/Testing Scavenger-Mutant | -2/Research Mutant | -2/Quarantine Gunner | -1/Access Scavenger-Gunner | -1/Command Resources | -11 -10 -10 -9 -9 -8 -8 -7 -7 -7 -7 -6 -6 -6 -6 -5 -5 -5 -5 -5 -5 -4 -4 -3 -3 -2 -2 -1 -1 ----------- Run | Yrd Mat Min Mat Sto Mat Gar Fac Gar Fac Gar Fac Was Fac Gar Fac Gar Fac Gar Fac Gar Fac Gar Res Tes Res Qua Acc Com Matter Collected 21338 | 277 424 101 850 144 245 443 94 638 . 732 110 113 195 549 273 505 596 782 496 379 482 386 1683 1192 1774 2735 4453 687 Remotely 7110 | . . . . . . . . . . . . . . . . . . . . . . . . . 648 1888 4220 354 Salvage Created 27394 | 102 473 73 1072 1267 1450 936 94 437 . 235 118 342 68 112 44 243 463 522 738 176 552 153 1944 1116 2908 3027 7409 1320 Parts 1319 | 4 40 1 75 76 75 38 8 21 . 9 1 5 . 7 4 15 19 16 29 12 30 3 104 68 119 134 330 76 Haulers Intercepted 20 | . 1 . 4 3 2 . . . . . . . 1 . . . . . 2 . . . 1 . 2 1 3 . Recyclers Shooed 15 | . 2 . 1 1 2 . . . . . . . . . . . . . 1 . 1 . . . 1 2 2 2 Parts Field Recycled . | . . . . . . . . . . . . . . . . . . . . . . . . . . . . . Retrieved Matter . | . . . . . . . . . . . . . . . . . . . . . . . . . . . . . Parts Self-Destructed . | . . . . . . . . . . . . . . . . . . . . . . . . . . . . . Prevented . | . . . . . . . . . . . . . . . . . . . . . . . . . . . . . Kills | -11 -10 -10 -9 -9 -8 -8 -7 -7 -7 -7 -6 -6 -6 -6 -5 -5 -5 -5 -5 -5 -4 -4 -3 -3 -2 -2 -1 -1 ------- Run | Yrd Mat Min Mat Sto Mat Gar Fac Gar Fac Gar Fac Was Fac Gar Fac Gar Fac Gar Fac Gar Fac Gar Res Tes Res Qua Acc Com Combat Hostiles Destroyed 344 | . 16 2 22 17 21 27 1 11 . 6 . 1 . 4 2 5 3 6 2 1 6 7 22 20 24 33 70 15 Melee 20 | . . . . . . . . . . . . . . . . . . 4 . . 5 . 3 8 . . . . Guns 127 | . 16 2 22 16 20 23 1 8 . 2 . . . . . . . . . . 1 3 . 3 . . . 10 Cannons 187 | . . . . . . . . 2 . 4 . 1 . 4 2 5 3 2 2 1 . 4 19 8 24 33 69 4 AOE 7 | . . . . 1 . 4 . 1 . . . . . . . . . . . . . . . 1 . . . . Classes Destroyed 26 | 2 5 . 3 2 . 4 . . . . . 1 . . . . 1 . 1 . 1 1 1 1 . 3 . . Worker 31 | . . . 1 1 5 . . . . . . . . . . . 1 . 4 . 3 . 1 2 3 . 8 2 Builder 15 | . . . . 1 . . 1 . . . . . . . . . 2 . . . 2 . 1 . 2 2 4 . Tunneler 4 | 1 . . 1 . . . . . . . . . . . . . . . . . . . 1 . . . 1 . Hauler 20 | . 1 . 4 3 2 . . . . . . . 1 . . . . . 2 . . . 1 . 2 1 3 . Recycler 31 | 1 . . 1 1 1 . 1 . . . 1 . . . . . 3 . 3 . 1 . 2 . 4 3 7 2 Carrier 4 | . . . . . . . . . . . . . . . . . . . . . . . . . . 1 2 1 Mechanic 2 | . . . 1 . 1 . . . . . . . . . . . . . . . . . . . . . . . Operator 8 | . 1 . 1 1 1 . . . . . . . . . . . . . . . 1 . 1 . . 1 1 . Watcher 19 | . 2 . 3 . 3 . . . . . . . . . . . 1 . . . . . 5 1 1 . 2 1 Swarmer 54 | . 9 . 8 . 4 5 . 1 . 6 . . . 1 1 . . . . . 1 . 1 5 . 7 . 5 Cutter 2 | . . . . . . 2 . . . . . . . . . . . . . . . . . . . . . . Saboteur 4 | . . . . . . . . . . . . . . . . . . . . . 1 . . . . . 3 . Grunt 123 | . 7 2 7 10 10 12 . 5 . . . . . 1 . . . 3 . 1 1 1 7 4 8 14 27 3 Brawler 11 | . . . . . . 3 . 1 . . . . . . . 1 . . . . . . . . 1 . 5 . Duelist 9 | . . . . 1 1 1 . . . . . . . 2 . . . . . . . . . . . . 4 . Protector 4 | . . . . . . . . . . . . . . . . . . . . . . . . . . 1 2 1 Researcher 2 | . . . . . . . . . . . . . . . . . . . . . . . . 1 . 1 . . Sentry 31 | . . . 7 8 6 1 1 1 . . . . . . . 1 . . . . . . . . 4 . 1 1 Demolisher 1 | . . . . . . . . . . . . . . . . . . . 1 . . . . . . . . . Specialist 2 | . . . . . . . . . . . . . . . . . . . . . . . 2 . . . . . Hunter 42 | . . . . . . 2 . 1 . . . . . . . 1 . . . . . . 4 3 5 8 18 . Programmer 54 | . . . . . . 1 . 3 . . . . . . 1 2 2 3 1 . 4 . 8 8 6 2 8 5 Q-Series 3 | . . . . . . . . . . . . . . . . . . . . . . . . . . 1 2 . Behemoth 1 | . . . . . . . . . . . . . . . . . 1 . . . . . . . . . . . Compactor 1 | . . . . . . . . . . . . 1 . . . . . . . . . . . . . . . . Assembled 7 | . . . . . . . . . . . . . . . . . . . . . . 7 . . . . . . Thug 1 | . . . . . . . . . . . . 1 . . . . . . . . . . . . . . . . Best Kill Streak 25 | 2 3 2 7 5 10 8 1 4 . 2 1 1 1 2 1 1 3 3 4 1 2 5 6 8 11 15 25 7 Combat Bots Only 19 | . 3 2 5 4 4 8 1 4 . 2 . 1 . 2 1 1 1 3 2 1 2 5 5 8 7 14 19 5 Max Kills in Single Turn 3 | 1 2 1 2 3 2 3 1 2 . 1 1 1 1 1 1 1 1 1 1 1 1 2 2 1 3 3 3 3 Gunslinging 1 | . 1 . 1 . 1 1 . 1 . . . . . . . . . . . . . . . . . . . . Exploded 3 | . . . . 1 . 3 . 1 . . . . . . . . . . . . . . . 1 . . . . Melee 1 | . . . . . . . . . . . . . . . . . . 1 . . 1 . 1 1 . . . . Uniques/NPCs Destroyed . | . . . . . . . . . . . . . . . . . . . . . . . . . . . . . Combat | -11 -10 -10 -9 -9 -8 -8 -7 -7 -7 -7 -6 -6 -6 -6 -5 -5 -5 -5 -5 -5 -4 -4 -3 -3 -2 -2 -1 -1 -------- Run | Yrd Mat Min Mat Sto Mat Gar Fac Gar Fac Gar Fac Was Fac Gar Fac Gar Fac Gar Fac Gar Fac Gar Res Tes Res Qua Acc Com Hostile Shots Fired 2482 | . 58 6 64 44 75 123 18 106 . 62 . . 7 19 20 39 11 61 53 39 127 150 197 247 102 192 517 145 Missed 767 | . 16 3 21 17 28 36 7 35 . 24 . . 3 8 5 7 5 9 20 13 38 48 57 68 33 65 156 45 Damage Taken 28032 | . 380 37 529 569 630 1534 81 851 . 474 21 21 127 208 243 701 177 1087 782 683 1117 1777 2715 2709 946 1547 5753 2333 Core 2661 | . 45 12 34 86 49 276 . 107 . 29 . . 51 32 13 87 . 122 140 71 171 549 246 152 39 49 113 188 Absorbed by Shields 5039 | . . . . . . 8 . . . 30 . . . . . 9 . 268 48 . 422 155 . . 836 1411 1852 . Reduced by Siege Mode 440 | . . . . . . . . . . . . . . . . . . . . . . . . . . . 406 34 Redirected to Shielding 102 | . . . . . . . . . . . . . . . . . . . . . . . . . . 102 . . Ignored by Resistances 1683 | . . . . . . . . . . . . . 22 . 10 28 . . . . . . . 1023 17 36 313 234 Regen/Repaired (Parts) 6654 | . . . . . . . . . 56 117 . . . . . . . . 16 . 234 . . 1281 864 1079 2365 642 Core Remaining (%) 69 | 100 . 77 . 70 . 40 . . . 80 . . . 90 . . . . . 56 . 37 . 69 . 93 . 55 Volleys Fired 1239 | 7 53 5 61 32 80 68 5 73 3 81 6 9 18 40 27 47 35 44 24 22 40 23 59 54 37 69 180 37 Largest 3 | 2 2 2 3 3 3 3 3 3 1 1 1 1 1 1 1 1 1 1 2 2 1 3 3 3 1 1 1 1 Hottest 300 | 70 70 46 69 135 171 177 117 175 5 94 83 83 83 83 83 83 83 83 96 96 35 129 245 195 100 120 300 300 Shots Fired 1897 | 14 106 10 183 96 213 149 15 105 3 81 6 10 18 40 27 47 36 45 30 26 41 41 158 78 36 69 178 36 Gun 927 | 14 106 10 183 96 213 138 15 61 . 3 . . . . . . . . 5 9 10 27 4 15 . . . 18 Cannon 727 | . . . . . . . . 23 . 51 2 3 9 23 8 25 23 16 12 12 . 11 154 54 36 69 178 18 Launcher 8 | . . . . . . 7 . . . . . . . . . . . . . . . . . 1 . . . . Special 235 | . . . . . . 4 . 21 3 27 4 7 9 17 19 22 13 29 13 5 31 3 . 8 . . . . Kinetic 1091 | 7 79 10 183 16 . 43 10 53 . 51 2 3 9 23 8 25 23 16 17 21 10 38 156 67 36 61 98 26 Thermal 431 | 7 27 . . . 161 95 5 31 . 3 . . . . . . . . . . . . 2 2 . 8 80 10 Explosive 8 | . . . . . . 7 . . . . . . . . . . . . . . . . . 1 . . . . Electromagnetic 132 | . . . . 80 52 . . . . . . . . . . . . . . . . . . . . . . . Robot Hit Streak 24 | 10 8 4 8 19 8 7 8 10 3 16 4 9 3 10 6 6 4 11 9 13 15 5 9 6 7 15 23 24 Robot Miss Streak 14 | 1 6 3 14 4 4 8 3 6 1 2 1 1 2 1 3 3 4 2 3 2 2 6 4 4 10 11 12 7 Penetration Max 2 | . . . . . . . . 1 . . . . . . . 1 . . 1 1 1 1 . 1 2 2 2 2 Secondary Targets 25 | . 3 1 4 5 4 5 . 3 . . . . . . . . . . . . . . . . . . . . Max Gunslinging Chain 1 | . 1 1 1 1 1 1 . 1 . . . . . . . . . . . . . . . . . . . . Shots Hit Robots 1380 | 10 65 8 102 77 131 81 12 53 2 48 5 8 8 24 17 23 21 52 41 28 59 21 108 74 37 69 163 33 Core Hits 972 | 3 34 5 61 59 58 49 14 37 . 11 1 2 1 4 1 4 7 10 10 7 14 9 48 33 72 120 254 44 Critical Kills 219 | . . . . . . . . 1 . . . . . . . . . . 1 1 . 5 26 7 34 39 85 20 Critical Parts Destroyed 323 | . . 1 . . . . . . . . . . . . . . . . 4 6 1 4 33 16 35 62 137 24 Critical Strikes 604 | 2 1 1 . . 4 5 . 3 . 3 . . . . 1 1 . 3 8 9 3 10 60 27 71 108 238 46 Burn 13 | 2 1 . . . 4 5 . 1 . . . . . . . . . . . . . . . . . . . . Meltdown 1 | . . . . . . . . . . . . . . . . . . . . . . . . . . . . 1 Destroy 569 | . . 1 . . . . . 1 . . . . . . . . . . 5 8 1 9 59 23 71 108 238 45 Blast 7 | . . . . . . . . 1 . 3 . . . . 1 1 . 1 . . . . . . . . . . Sever 9 | . . . . . . . . . . . . . . . . . . 1 1 . 1 1 1 4 . . . . Impale 5 | . . . . . . . . . . . . . . . . . . 1 2 1 1 . . . . . . . Melee Attacks 205 | . . . . . . . . . . . . . . 1 . . 1 29 34 20 37 3 22 44 6 5 . 3 Impact . | . . . . . . . . . . . . . . . . . . . . . . . . . . . . . Slashing 95 | . . . . . . . . . . . . . . 1 . . 1 7 1 . 3 3 21 44 6 5 . 3 Piercing 96 | . . . . . . . . . . . . . . . . . . 22 20 20 34 . . . . . . . Sneak Attacks 29 | . . . . . . . . . . . . . . . . . 1 . 11 . 10 . 1 3 1 2 . . Combat Hostiles . | . . . . . . . . . . . . . . . . . . . . . . . . . . . . . Follow-up Attacks 8 | . . . . . . . . . . . . . . . . . . 7 1 . . . . . . . . . Damage Inflicted 34155 | 131 837 121 1668 1691 2654 2299 247 901 . 1603 144 250 241 610 354 703 1062 1517 1096 608 1771 606 2479 3212 646 1401 4420 883 Guns 10460 | 131 837 121 1648 1255 2585 1615 247 767 . 56 . . . . . . . . 22 67 176 384 51 185 . . . 313 Cannons 14653 | . . . . . . . . 134 . 1547 144 250 241 610 341 703 992 391 129 180 . 152 1670 837 512 1092 4158 570 Explosions 1968 | . . . . 436 69 676 . . . . . . . . . . . . . . . . . 460 . 65 262 . Melee 7030 | . . . . . . . . . . . . . . . . . 70 1126 945 361 1595 70 755 1730 134 244 . . Ramming 44 | . . . 20 . . 8 . . . . . . . . 13 . . . . . . . 3 . . . . . Kinetic 16689 | 56 687 121 1648 253 . 599 187 696 . 1547 144 250 241 610 341 703 992 391 151 247 176 536 1680 1022 512 834 1624 441 Thermal 7147 | 75 150 . . 436 1874 1016 60 205 . 56 . . . . . . . . . . . . 41 . . 258 2534 442 Explosive 1322 | . . . . . . 676 . . . . . . . . . . . . . . . . . 460 . 65 121 . Electromagnetic 1923 | . . . . 1002 780 . . . . . . . . . . . . . . . . . . . . . 141 . Impact . | . . . . . . . . . . . . . . . . . . . . . . . . . . . . . Slashing 3589 | . . . . . . . . . . . . . . . . . 70 255 32 . 299 70 755 1730 134 244 . . Piercing 3441 | . . . . . . . . . . . . . . . . . . 871 913 361 1296 . . . . . . . Highest Corruption 21 | . . . . . . 6 . . . . . 1 1 1 . 1 4 5 5 . 10 10 13 21 2 6 10 20 Average Corruption 4 | . . . . . . 5 . . . . . 1 1 1 . 1 2 4 4 . 2 10 4 15 1 4 5 12 Corruption Purged 12 | . . . . . . . . . . . . . . . . . . . 5 . . . . 7 . . . . Corruption Blocked . | . . . . . . . . . . . . . . . . . . . . . . . . . . . . . Effects 326 | . . . . . . 29 . . . . . 10 6 8 . 2 15 33 16 . 17 18 21 79 7 12 33 20 Message Errors 81 | . . . . . . 8 . . . . . 3 2 2 . . 4 9 4 . 8 2 3 19 3 2 10 2 Matter Fused 80 | . . . . . . 3 . . . . . 2 1 1 . . 6 9 3 . 2 7 7 17 1 4 9 8 Heat Flow Errors 37 | . . . . . . 5 . . . . . 1 1 3 . 1 1 2 2 . . 4 3 9 . . 1 4 Energy Discharges 33 | . . . . . . 3 . . . . . 1 1 1 . 1 1 3 2 . 1 1 3 9 2 . 4 . Parts Rejected 7 | . . . . . . . . . . . . . . . . . . . . . . 1 . 2 . . 2 2 Parts Fused 2 | . . . . . . 1 . . . . . . . . . . . . . . . . . . . . 1 . Data Loss (minor) 36 | . . . . . . 2 . . . . . 1 . 1 . . . 6 3 . 2 1 4 9 . 4 2 1 Data Loss (major) 13 | . . . . . . 1 . . . . . . . . . . . 3 . . 2 . . 6 . . . 1 Misfires 11 | . . . . . . 3 . . . . . 1 . . . . 1 1 1 . 1 . . 2 . 1 . . Alerts 9 | . . . . . . . . . . . . 1 1 . . . 2 . 1 . 1 . . 3 . . . . Misdirections 5 | . . . . . . . . . . . . . . . . . . . . . . 1 . 1 . . 2 1 Weapon Failures 12 | . . . . . . 3 . . . . . . . . . . . . . . . 1 1 2 1 1 2 1 Overload Shots . | . . . . . . . . . . . . . . . . . . . . . . . . . . . . . Overflow Damage 1805 | . . . . 13 . 56 . . . 33 . . . . 41 152 203 145 259 . 246 . . 280 44 147 96 90 Projectiles 668 | . . . . . . . . . . 33 . . . . 41 152 203 38 . . . . . 27 . 8 76 90 Explosions 179 | . . . . 13 . 56 . . . . . . . . . . . . . . . . . 55 . 35 20 . Melee 958 | . . . . . . . . . . . . . . . . . . 107 259 . 246 . . 198 44 104 . . Knockbacks 133 | . . . . . . . . 3 . 5 . . . 1 2 2 . . . . . 2 24 12 8 48 22 4 Impact . | . . . . . . . . . . . . . . . . . . . . . . . . . . . . . Kinetic 122 | . . . . . . . . 2 . 5 . . . 1 2 2 . . . . . 1 22 10 8 44 21 4 Secondary 11 | . . . . . . . . 1 . . . . . . . . . . . . . 1 2 2 . 4 1 . Self-Inflicted Damage 297 | . . . . 92 . 118 . . . . . . . . 6 . . . . . . . 1 . . 80 . . Shots 7 | . . . . 3 . 3 . . . . . . . . . . . . . . . . . . . 1 . . Rammed 7 | . . . 4 . . 1 . . . . . . . . 1 . . . . . . . 1 . . . . . Targets Rammed 7 | . . . 4 . . 1 . . . . . . . . 1 . . . . . . . 1 . . . . . Kicked . | . . . . . . . . . . . . . . . . . . . . . . . . . . . . . Crushed . | . . . . . . . . . . . . . . . . . . . . . . . . . . . . . Highest Temperature 455 | 110 182 21 60 175 410 455 8 119 . 78 16 125 186 200 20 139 133 69 211 45 . 238 276 392 335 132 336 307 Average Temperature 88 | 52 58 16 16 55 117 145 6 28 . 33 12 37 38 28 11 18 16 15 45 18 . 85 103 165 116 35 106 105 Received Heat Transfer 3132 | . 90 21 225 147 288 468 24 237 . 54 12 . . 36 18 63 36 34 89 189 53 40 274 234 74 148 107 171 Effects 17 | . . . . . 4 2 . . . . . . . . . . . . . . . 1 . 5 1 . 4 . Shutdowns 2 | . . . . . 1 . . . . . . . . . . . . . . . . . . 1 . . . . Energy Bleed 4 | . . . . . . 2 . . . . . . . . . . . . . . . 1 . . 1 . . . Interference 7 | . . . . . 3 . . . . . . . . . . . . . . . . . . 1 . . 3 . Short Circuit 1 | . . . . . . . . . . . . . . . . . . . . . . . . 1 . . . . Damage (minor) 3 | . . . . . . . . . . . . . . . . . . . . . . . . 2 . . 1 . Siege Activations 12 | . . . . . . . . . . . . . . . . . . . . . . . . . . . 10 2 Total Turns 212 | . . . . . . . . . . . . . . . . . . . . . . . . . . . 191 21 Longest Duration 93 | . . . . . . . . . . . . . . . . . . . . . . . . . . . 93 16 Robots Corrupted 2 | . . . . . 2 . . . . . . . . . . . . . . . . . . . . . . . Combat Hostiles 1 | . . . . . 1 . . . . . . . . . . . . . . . . . . . . . . . Parts Fried 6 | . . . . 3 3 . . . . . . . . . . . . . . . . . . . . . . . Impact Corruptions . | . . . . . . . . . . . . . . . . . . . . . . . . . . . . . Robots Melted 2 | . . . . . . . . . . . . . . . . . . . . . . . . . . . 1 1 Combat Hostiles 2 | . . . . . . . . . . . . . . . . . . . . . . . . . . . 1 1 Parts Melted 20 | 1 1 . . 1 7 3 . 1 . 1 . . . 1 . . . . . . . . . . . . 3 1 Heat Transferred 10848 | 370 518 . . 550 3676 2219 111 407 . 74 . . . . . . . . . . . . 37 . . 222 2479 185 Parts Sabotaged 5 | . . . . . . . . . . . . . . . . . . . . . 4 . . . . . . 1 Parts Stolen . | . . . . . . . . . . . . . . . . . . . . . . . . . . . . . Parts Stripped . | . . . . . . . . . . . . . . . . . . . . . . . . . . . . . Power Chain Reactions 6 | . . . . 5 1 . . . . . . . . . . . . . . . . . . . . . . . Alert | -11 -10 -10 -9 -9 -8 -8 -7 -7 -7 -7 -6 -6 -6 -6 -5 -5 -5 -5 -5 -5 -4 -4 -3 -3 -2 -2 -1 -1 ------- Run | Yrd Mat Min Mat Sto Mat Gar Fac Gar Fac Gar Fac Was Fac Gar Fac Gar Fac Gar Fac Gar Fac Gar Res Tes Res Qua Acc Com Peak Influence 2945 | 10 211 86 272 685 438 1169 820 1603 861 1765 1099 431 1493 2081 1571 1483 869 1781 1235 1671 1175 984 631 414 942 1627 2945 2709 Initial 1884 | . 6 36 . 114 289 157 613 574 841 602 926 378 56 875 1092 709 735 126 934 583 877 794 502 354 153 529 976 1884 Average 757 | 3 105 23 86 466 310 672 673 1067 847 1132 1076 292 769 1561 1273 1093 481 1033 982 1304 761 905 435 204 310 1000 1917 2213 Maximum Alert Level 5 | . 1 . 1 2 2 4 3 5 3 5 3 2 4 5 4 4 3 5 4 5 4 3 2 2 3 5 5 5 Low Security (%) 19 | 100 98 100 82 6 9 4 . . . . . 14 7 . . . 30 4 . . . . . 46 37 . . . Level 1 15 | . 1 . 17 31 83 8 . . . . . 47 25 . . . 2 7 . . 7 . 43 52 37 . . . Level 2 17 | . . . . 61 7 47 70 5 . 3 . 38 13 . . . 44 17 2 16 33 . 56 1 22 10 . . Level 3 24 | . . . . . . 25 29 48 100 43 100 . 25 22 33 64 22 28 78 8 56 100 . . 2 53 8 . Level 4 13 | . . . . . . 13 . 42 . 44 . . 27 23 66 35 . 20 18 46 2 . . . . 29 15 . Level 5 9 | . . . . . . . . 3 . 8 . . . 54 . . . 21 . 28 . . . . . 5 70 66 High Security . | . . . . . . . . . . . . . . . . . . . . . . . . . . . 5 33 Max Security . | . . . . . . . . . . . . . . . . . . . . . . . . . . . . . Squads Dispatched 102 | . 3 . 1 5 . . 2 . . . 2 . 11 . 2 . 3 . 9 . 13 . 5 7 4 7 21 7 Investigation 13 | . 1 . . 2 . . . . . . 1 . 1 . 2 . . . 3 . 1 . 1 1 . . . . Extermination 15 | . . . . . . . . . . . . . . . . . 1 . 1 . 2 . 2 3 2 1 3 . Reinforcement 39 | . 2 . 1 2 . . 1 . . . . . 7 . . . 2 . 3 . 4 . 2 3 2 3 7 . Assault 27 | . . . . 1 . . . . . . 1 . 2 . . . . . 2 . 5 . . . . 3 6 7 Garrison 8 | . . . . . . . 1 . . . . . 1 . . . . . . . 1 . . . . . 5 . Intercept . | . . . . . . . . . . . . . . . . . . . . . . . . . . . . . Searches Triggered . | . . . . . . . . . . . . . . . . . . . . . . . . . . . . . Construction Impeded 12 | . . . . . . . . . . . . . 2 . . . 1 . 1 . 1 . 1 . 1 1 4 . Haulers Reinforced 5 | . . . . . . . . . . . . . 1 . . . . . 1 . 1 . . . . . 2 . Active Scanning Responses . | . . . . . . . . . . . . . . . . . . . . . . . . . . . . . Cargo Convoy Interrupts . | . . . . . . . . . . . . . . . . . . . . . . . . . . . . . Stealth | -11 -10 -10 -9 -9 -8 -8 -7 -7 -7 -7 -6 -6 -6 -6 -5 -5 -5 -5 -5 -5 -4 -4 -3 -3 -2 -2 -1 -1 --------- Run | Yrd Mat Min Mat Sto Mat Gar Fac Gar Fac Gar Fac Was Fac Gar Fac Gar Fac Gar Fac Gar Fac Gar Res Tes Res Qua Acc Com Distress Signals 40 | . 1 . 3 4 3 . . . . . . . 2 . . . 1 . 9 . 5 . 1 1 3 2 3 2 Communications Jammed . | . . . . . . . . . . . . . . . . . . . . . . . . . . . . . Distress Signals . | . . . . . . . . . . . . . . . . . . . . . . . . . . . . . Times Spotted 918 | . 27 2 42 36 31 28 1 39 4 33 5 4 14 23 28 33 14 44 47 33 67 58 36 39 35 47 96 52 Peak Tracking Total 19 | . 4 2 9 5 5 10 1 8 2 8 5 2 5 4 6 9 3 14 10 8 10 19 6 5 7 10 7 17 Tactical Retreats 54 | . 1 . 4 2 1 2 . . . . . . . . . 1 . 2 5 1 2 6 5 2 5 4 2 9 Traps | -11 -10 -10 -9 -9 -8 -8 -7 -7 -7 -7 -6 -6 -6 -6 -5 -5 -5 -5 -5 -5 -4 -4 -3 -3 -2 -2 -1 -1 ------- Run | Yrd Mat Min Mat Sto Mat Gar Fac Gar Fac Gar Fac Was Fac Gar Fac Gar Fac Gar Fac Gar Fac Gar Res Tes Res Qua Acc Com Traps Triggered 80 | . . . . 2 . 7 . 2 . 10 2 . 2 8 . 8 4 8 4 8 3 2 1 . 3 4 2 . Indirectly . | . . . . . . . . . . . . . . . . . . . . . . . . . . . . . Trap Hack Attempts . | . . . . . . . . . . . . . . . . . . . . . . . . . . . . . Triggered . | . . . . . . . . . . . . . . . . . . . . . . . . . . . . . Disarmed . | . . . . . . . . . . . . . . . . . . . . . . . . . . . . . Reprogrammed . | . . . . . . . . . . . . . . . . . . . . . . . . . . . . . Reused . | . . . . . . . . . . . . . . . . . . . . . . . . . . . . . Traps Extracted . | . . . . . . . . . . . . . . . . . . . . . . . . . . . . . Installed . | . . . . . . . . . . . . . . . . . . . . . . . . . . . . . Triggered . | . . . . . . . . . . . . . . . . . . . . . . . . . . . . . Machines | -11 -10 -10 -9 -9 -8 -8 -7 -7 -7 -7 -6 -6 -6 -6 -5 -5 -5 -5 -5 -5 -4 -4 -3 -3 -2 -2 -1 -1 ---------- Run | Yrd Mat Min Mat Sto Mat Gar Fac Gar Fac Gar Fac Was Fac Gar Fac Gar Fac Gar Fac Gar Fac Gar Res Tes Res Qua Acc Com Machines Disabled 113 | . . . . 1 . 4 6 6 . 5 . . 26 5 3 7 1 7 2 4 11 1 1 7 3 5 8 . Max in Single Turn 2 | . . . . 1 . 1 . 1 . 1 . . . 1 1 2 . 2 . 1 . 1 1 1 1 1 2 . Garrison Access 2 | . . . . . . . . . . . . . 1 . . . . . 1 . . . . . . . . . Garrison Relay 34 | . . . . . . 4 . 5 . 5 . . . 5 . 5 . 5 . 4 . 1 . . . . . . Phase Generator 2 | . . . . . . . . . . . . . . . . 1 . 1 . . . . . . . . . . Machines Repaired . | . . . . . . . . . . . . . . . . . . . . . . . . . . . . . Machines Dismantled . | . . . . . . . . . . . . . . . . . . . . . . . . . . . . . Machines Sabotaged . | . . . . . . . . . . . . . . . . . . . . . . . . . . . . . Overloaded Fab Kills . | . . . . . . . . . . . . . . . . . . . . . . . . . . . . . Hacking | -11 -10 -10 -9 -9 -8 -8 -7 -7 -7 -7 -6 -6 -6 -6 -5 -5 -5 -5 -5 -5 -4 -4 -3 -3 -2 -2 -1 -1 --------- Run | Yrd Mat Min Mat Sto Mat Gar Fac Gar Fac Gar Fac Was Fac Gar Fac Gar Fac Gar Fac Gar Fac Gar Res Tes Res Qua Acc Com Machines Accessed 112 | . 7 . 9 9 10 4 2 2 1 2 2 . 8 2 5 5 9 2 5 2 7 1 3 9 2 1 3 . Terminals 93 | . 6 . 9 9 9 4 1 2 . 2 2 . 6 2 4 5 6 2 3 2 2 1 3 8 1 1 3 . Fabricators 8 | . . . . . . . . . . . . . . . . . 2 . 1 . 3 . . 1 1 . . . Repair Stations . | . . . . . . . . . . . . . . . . . . . . . . . . . . . . . Recycling Units 1 | . 1 . . . . . . . . . . . . . . . . . . . . . . . . . . . Scanalyzers 1 | . . . . . . . . . . . . . . . . . . . . . 1 . . . . . . . Garrison Access 9 | . . . . . 1 . 1 . 1 . . . 2 . 1 . 1 . 1 . 1 . . . . . . . Total Hacks 273 | . 20 . 26 19 26 9 3 4 1 7 6 . 20 6 17 11 25 6 9 6 21 1 4 18 3 1 4 . Successful 131 | . 10 . 16 11 11 4 2 2 1 3 2 . 10 1 8 5 13 . 5 4 13 . 1 9 . . . . Failed 141 | . 10 . 9 8 15 5 1 2 . 4 4 . 10 5 9 6 12 6 4 2 8 1 3 9 3 1 4 . Catastrophic 32 | . 2 . 2 . 3 1 . 1 . 1 . . 1 . 4 1 3 1 . 1 1 1 2 3 . 1 3 . Database Lockouts 1 | . . . 1 . . . . . . . . . . . . . . . . . . . . . . . . . Manual 127 | . 17 . 14 11 15 3 . . . 4 6 . 6 . 10 2 16 . 3 4 8 . 1 6 . 1 . . Terminals 234 | . 19 . 26 19 25 9 1 4 . 7 6 . 18 6 16 11 16 6 6 6 5 1 4 17 1 1 4 . Fabricators 25 | . . . . . . . . . . . . . . . . . 7 . 2 . 13 . . 1 2 . . . Repair Stations . | . . . . . . . . . . . . . . . . . . . . . . . . . . . . . Recycling Units 1 | . 1 . . . . . . . . . . . . . . . . . . . . . . . . . . . Scanalyzers 2 | . . . . . . . . . . . . . . . . . . . . . 2 . . . . . . . Garrison Access 11 | . . . . . 1 . 2 . 1 . . . 2 . 1 . 2 . 1 . 1 . . . . . . . Terminal Hacks 75 | . 7 . 13 7 8 3 . 2 . 2 . . 6 1 5 4 4 . 2 2 1 . 1 7 . . . . Part Schematic 1 | . . . . . . . . . . . . . . . . . . . 1 . . . . . . . . . Robot Schematic 1 | . . . . . . . . . . . . . . . 1 . . . . . . . . . . . . . Robot Analysis 5 | . 3 . 1 . 1 . . . . . . . . . . . . . . . . . . . . . . . Prototype ID Bank 13 | . 2 . 3 1 4 . . . . . . . . . . . 1 . . . . . . 2 . . . . Open Door 7 | . . . . 3 . 1 . . . . . . . 1 . 1 . . . . . . . 1 . . . . Branch Access Points 2 | . . . 1 . . . . . . . . . . . . . . . . . . . . 1 . . . . Emergency Access Points 5 | . . . . . . 1 . 1 . 1 . . . . . 1 . . . 1 . . . . . . . . Terminal Index 8 | . 1 . 1 1 1 . . . . . . . 1 . . . 1 . . . 1 . . 1 . . . . Garrison Index 2 | . . . . . . . . . . . . . 1 . 1 . . . . . . . . . . . . . Alert Level 2 | . . . 1 1 . . . . . . . . . . . . . . . . . . . . . . . . Unreport Threat 17 | . . . 3 1 2 . . . . . . . 3 . 3 . 2 . 1 . . . 1 1 . . . . Patrol Status 2 | . . . 1 . . . . . . . . . . . . . . . . . . . . 1 . . . . Hauler Manifests 4 | . 1 . 2 . . . . . . . . . 1 . . . . . . . . . . . . . . . Garrison Registry 2 | . . . . . . 1 . . . . . . . . . 1 . . . . . . . . . . . . Patrol Navigation 2 | . . . . . . . . 1 . . . . . . . 1 . . . . . . . . . . . . Security Stations 2 | . . . . . . . . . . 1 . . . . . . . . . 1 . . . . . . . . Fabricator Hacks 9 | . . . . . . . . . . . . . . . . . 1 . . . 8 . . . . . . . Network Status 2 | . . . . . . . . . . . . . . . . . 1 . . . 1 . . . . . . . Load Schematic 4 | . . . . . . . . . . . . . . . . . . . . . 4 . . . . . . . Build 3 | . . . . . . . . . . . . . . . . . . . . . 3 . . . . . . . Repair Station Hacks . | . . . . . . . . . . . . . . . . . . . . . . . . . . . . . Recycling Unit Hacks . | . . . . . . . . . . . . . . . . . . . . . . . . . . . . . Scanalyzer 1 | . . . . . . . . . . . . . . . . . . . . . 1 . . . . . . . Insert Component 1 | . . . . . . . . . . . . . . . . . . . . . 1 . . . . . . . Garrison Access Hacks 11 | . . . . . 1 . 2 . 1 . . . 2 . 1 . 2 . 1 . 1 . . . . . . . Unlock Access 9 | . . . . . 1 . 1 . 1 . . . 2 . 1 . 1 . 1 . 1 . . . . . . . Coupler Status 2 | . . . . . . . 1 . . . . . . . . . 1 . . . . . . . . . . . Unauthorized Hacks 35 | . 3 . 3 4 2 1 . . . 1 2 . 2 . 2 1 6 . 2 2 2 . . 2 . . . . Terminals 28 | . 2 . 3 4 2 1 . . . 1 2 . 2 . 2 1 2 . 2 2 . . . 2 . . . . Track 3 | . . . 1 1 . . . . . . . . . . . . . . 1 . . . . . . . . . Botnet 24 | . 2 . 2 2 2 1 . . . 1 2 . 2 . 2 1 2 . 1 2 . . . 2 . . . . Operators 1 | . . . . 1 . . . . . . . . . . . . . . . . . . . . . . . . Fabricators 6 | . . . . . . . . . . . . . . . . . 4 . . . 2 . . . . . . . Report 1 | . . . . . . . . . . . . . . . . . 1 . . . . . . . . . . . Prioritize 1 | . . . . . . . . . . . . . . . . . . . . . 1 . . . . . . . Liberate 2 | . . . . . . . . . . . . . . . . . 2 . . . . . . . . . . . Haulers 1 | . . . . . . . . . . . . . . . . . 1 . . . . . . . . . . . Recompile 1 | . . . . . . . . . . . . . . . . . . . . . 1 . . . . . . . Repair Stations . | . . . . . . . . . . . . . . . . . . . . . . . . . . . . . Recycling Units 1 | . 1 . . . . . . . . . . . . . . . . . . . . . . . . . . . Tunnel 1 | . 1 . . . . . . . . . . . . . . . . . . . . . . . . . . . Scanalyzers . | . . . . . . . . . . . . . . . . . . . . . . . . . . . . . Garrison Access . | . . . . . . . . . . . . . . . . . . . . . . . . . . . . . Data Cores Recovered 3 | . . . . . 1 . . . . . . . 2 . . . . . . . . . . . . . . . Used 1 | . . . . . . . . . . . . . 1 . . . . . . . . . . . . . . . Hacking Detections 94 | . 6 . 6 6 10 4 2 2 . 2 2 . 6 2 4 4 6 2 4 2 6 1 3 8 2 1 3 . Full Trace Events 8 | . . . . . . . . 1 . . . . 1 1 2 . . 2 . . . . . 1 . . . . Feedback Events . | . . . . . . . . . . . . . . . . . . . . . . . . . . . . . Feedback Blocked . | . . . . . . . . . . . . . . . . . . . . . . . . . . . . . Robot Schematics Acquired 1 | . . . . . . . . . . . . . . . 1 . . . . . . . . . . . . . Robots Built 6 | . . . . . . . . . . . . . . . . . . . . . 6 . . . . . . . Authchips 3 | . . . . . . . . . . . . . . . . . . . . . 3 . . . . . . . Time 252 | . . . . . . . . . . . . . . . . . . . . . 252 . . . . . . . Total Robot Build Rating 36 | . . . . . . . . . . . . . . . . . . . . . 36 . . . . . . . Part Schematics Acquired 9 | . . . . . . . . . . . . . . . . . . . 1 . . . . 8 . . . . Parts Built . | . . . . . . . . . . . . . . . . . . . . . . . . . . . . . Authchips . | . . . . . . . . . . . . . . . . . . . . . . . . . . . . . Time . | . . . . . . . . . . . . . . . . . . . . . . . . . . . . . Total Part Build Rating . | . . . . . . . . . . . . . . . . . . . . . . . . . . . . . Parts Repaired . | . . . . . . . . . . . . . . . . . . . . . . . . . . . . . Time . | . . . . . . . . . . . . . . . . . . . . . . . . . . . . . Parts Recycled . | . . . . . . . . . . . . . . . . . . . . . . . . . . . . . Recycled Matter . | . . . . . . . . . . . . . . . . . . . . . . . . . . . . . Retrieved Matter . | . . . . . . . . . . . . . . . . . . . . . . . . . . . . . Retrieved Components . | . . . . . . . . . . . . . . . . . . . . . . . . . . . . . Parts Scanalyzed . | . . . . . . . . . . . . . . . . . . . . . . . . . . . . . Part Schematics Acquired . | . . . . . . . . . . . . . . . . . . . . . . . . . . . . . Parts Damaged . | . . . . . . . . . . . . . . . . . . . . . . . . . . . . . Bothacking | -11 -10 -10 -9 -9 -8 -8 -7 -7 -7 -7 -6 -6 -6 -6 -5 -5 -5 -5 -5 -5 -4 -4 -3 -3 -2 -2 -1 -1 ------------ Run | Yrd Mat Min Mat Sto Mat Gar Fac Gar Fac Gar Fac Was Fac Gar Fac Gar Fac Gar Fac Gar Fac Gar Res Tes Res Qua Acc Com Used RIF Installer 9 | . . . . . . 1 . 1 . 1 . . . 2 . 1 . 1 . 1 . 1 . . . . . . Coupler Efficiency 1 | . . . . . . . . . . . . . . . . . . . . . . 1 . . . . . . Hotswap 1 | . . . . . . . . 1 . . . . . . . . . . . . . . . . . . . . Zone Cloak 1 | . . . . . . . . . . . . . . 1 . . . . . . . . . . . . . . Patrol Navigation 1 | . . . . . . . . . . . . . . . . 1 . . . . . . . . . . . . Structural Interface 1 | . . . . . . . . . . . . . . . . . . . . 1 . . . . . . . . Autooverride 1 | . . . . . . . . . . 1 . . . . . . . . . . . . . . . . . . Autoassimilate 2 | . . . . . . . . . . . . . . 1 . . . 1 . . . . . . . . . . Robots Hacked 201 | . . . . . . . . 16 2 14 . 6 5 10 12 22 8 24 24 11 35 5 2 5 . . . . Non-combat 24 | . . . . . . . . . 2 . . . 2 . 3 . 2 1 5 . 8 . . 1 . . . . Combat 177 | . . . . . . . . 16 . 14 . 6 3 10 9 22 6 23 19 11 27 5 2 4 . . . . Autooverrided 18 | . . . . . . . . . . 1 . . . 2 . 1 1 4 2 1 5 . 1 . . . . . Autoassimilated 30 | . . . . . . . . . . . . . . . 2 3 . 2 5 5 9 2 1 1 . . . . Robot Hacks Applied 164 | . . . . . . . . 16 2 13 . 6 5 8 11 18 8 18 19 5 25 3 . 7 . . . . parse_system 4 | . . . . . . . . . . 1 . . . . . 1 . . . . 1 1 . . . . . . no_distress 1 | . . . . . . . . . . . . . . . . . . . . . 1 . . . . . . . find_chute 1 | . . . . . . . . . . . . . . . 1 . . . . . . . . . . . . . deconstruct_machine 1 | . . . . . . . . . . . . . . . . . . . . . 1 . . . . . . . find_fabricator 1 | . . . . . . . . . . . . . . . 1 . . . . . . . . . . . . . drop_inventory 7 | . . . . . . . . . . . . . . . 1 . 1 . 2 . 3 . . . . . . . purge_threat 10 | . . . . . . . . . . . . . . . . . 2 . 3 . 3 . . 2 . . . . block_reporting 2 | . . . . . . . . . . . . . 1 . . . . . . . . . . 1 . . . . map_route 2 | . . . . . . . . . 1 . . . . . . . . . 1 . . . . . . . . . ignore_targets 6 | . . . . . . . . . . . . 6 . . . . . . . . . . . . . . . . mark_system 1 | . . . . . . . . . . . . . . . . . . . . . . 1 . . . . . . spike_heat 7 | . . . . . . . . 1 . . . . . 2 . 1 . 3 . . . . . . . . . . overload_power 1 | . . . . . . . . . . . . . . . 1 . . . . . . . . . . . . . amplify_resonance 5 | . . . . . . . . 1 . 1 . . . . . 1 . 2 . . . . . . . . . . disable_weapons 3 | . . . . . . . . . . . . . . . . . . . . . 3 . . . . . . . reboot_system 1 | . . . . . . . . 1 . . . . . . . . . . . . . . . . . . . . overwrite_iff 8 | . . . . . . . . 2 . 1 . . . . 2 3 . . . . . . . . . . . . formatsys_low 7 | . . . . . . . . . 1 . . . 1 . . . . . 1 . 3 . . 1 . . . . formatsys_high 95 | . . . . . . . . 11 . 10 . . 3 6 5 12 5 13 12 5 9 1 . 3 . . . . formatsys_deep 1 | . . . . . . . . . . . . . . . . . . . . . 1 . . . . . . . Relay Couplers Released 150 | . . . . . . 18 . 19 . 20 . . 2 23 . 19 3 20 3 15 . 4 4 . . . . . Machine Destruction 140 | . . . . . . 15 . 19 . 20 . . 2 23 . 19 . 20 3 15 . 4 . . . . . . Programmers 10 | . . . . . . 3 . . . . . . . . . . 3 . . . . . 4 . . . . . Attached 63 | . . . . . . . . 8 1 7 . 1 2 6 . 5 3 12 7 2 5 1 1 2 . . . . Fabnet Peak Effective % . | . . . . . . . . . . . . . . . . . . . . . . . . . . . . . Robots Rewired 22 | . . . . . . 2 . . . 6 2 . . 5 . . . 7 . . . . . . . . . . Allies Hacked 14 | . . . . . . . . . . . . . 2 . 2 1 2 1 3 . 3 . . . . . . . Hacks Repelled . | . . . . . . . . . . . . . . . . . . . . . . . . . . . . . Allies | -11 -10 -10 -9 -9 -8 -8 -7 -7 -7 -7 -6 -6 -6 -6 -5 -5 -5 -5 -5 -5 -4 -4 -3 -3 -2 -2 -1 -1 -------- Run | Yrd Mat Min Mat Sto Mat Gar Fac Gar Fac Gar Fac Was Fac Gar Fac Gar Fac Gar Fac Gar Fac Gar Res Tes Res Qua Acc Com Total Allies 232 | . . 3 . 10 . 2 . 13 1 20 5 22 4 13 9 20 9 26 20 11 34 3 2 5 . . . . Largest Group 40 | . . 3 3 10 1 2 1 7 8 22 24 40 40 12 9 10 7 15 11 13 11 5 1 3 . . . . Highest-Rated Group 1317 | . . 40 40 88 8 59 39 148 171 621 702 1317 1294 471 300 374 215 551 495 581 521 253 64 138 . . . . Highest-Rated Ally 149 | . . 16 16 16 8 39 39 32 32 95 95 95 95 95 49 149 149 99 137 137 58 56 64 64 . . . . Total Orders 17 | . . . . . . . . . 1 1 2 1 1 1 1 . . . 1 . 8 . . . . . . . AID 11 | . . . . . . . . . 1 1 2 1 1 1 1 . . . 1 . 2 . . . . . . . EXPLORE 5 | . . . . . . . . . . . . . . . . . . . . . 5 . . . . . . . RETURN 1 | . . . . . . . . . . . . . . . . . . . . . 1 . . . . . . . Ally Attacks 1696 | . . . 10 126 10 12 4 34 26 88 58 93 174 132 107 109 29 157 132 126 173 68 9 19 . . . . Total Damage 45652 | . . . 119 1137 100 151 336 858 297 1857 1241 3174 7444 3832 2092 2159 1503 3811 3086 3038 6580 1855 399 583 . . . . Kills 332 | . . . 1 22 1 2 2 10 3 15 11 5 54 26 18 14 8 31 27 25 37 13 3 4 . . . . Allies Corrupted 15 | . . . . . . . . . . . . . 3 . 3 . 1 . 1 . 5 . . 2 . . . . Allies Melted 2 | . . . . . . . 1 . . . . . . . . . . 1 . . . . . . . . . . Intel | -11 -10 -10 -9 -9 -8 -8 -7 -7 -7 -7 -6 -6 -6 -6 -5 -5 -5 -5 -5 -5 -4 -4 -3 -3 -2 -2 -1 -1 ------- Run | Yrd Mat Min Mat Sto Mat Gar Fac Gar Fac Gar Fac Was Fac Gar Fac Gar Fac Gar Fac Gar Fac Gar Res Tes Res Qua Acc Com Robot Analysis Total 5 | . 3 . 1 . 1 . . . . . . . . . . . . . . . . . . . . . . . Derelict Logs Recovered 1 | . . 1 . . . . . . . . . . . . . . . . . . . . . . . . . . Drone Launches 5 | . . . . . . . . . . . . . . . . . . . . . 5 . . . . . . . Drone Recoveries 5 | . . . . . . . . . . . . . . . . . . . . . 5 . . . . . . . Exploration | -11 -10 -10 -9 -9 -8 -8 -7 -7 -7 -7 -6 -6 -6 -6 -5 -5 -5 -5 -5 -5 -4 -4 -3 -3 -2 -2 -1 -1 ------------- Run | Yrd Mat Min Mat Sto Mat Gar Fac Gar Fac Gar Fac Was Fac Gar Fac Gar Fac Gar Fac Gar Fac Gar Res Tes Res Qua Acc Com Turns Passed 32206 | 121 1439 1073 1581 1512 1220 1477 382 1249 187 1558 561 933 851 1125 576 1123 1147 1533 1346 1315 1818 563 1694 1705 1434 708 1531 444 Spaces Moved 17448 | 56 758 653 745 781 588 551 169 648 67 783 374 333 615 675 404 717 755 929 920 563 942 200 1074 1112 824 314 639 259 Core 529 | 1 . . . . . . . . . . . 13 . . . . . . . . . 91 422 . . . . 2 Treads 4597 | 55 758 653 745 781 187 454 20 . . . . . . . . . . . . . . . 481 . . . 324 139 Legs . | . . . . . . . . . . . . . . . . . . . . . . . . . . . . . Wheels 12150 | . . . . . 401 97 149 648 67 783 374 320 615 675 404 717 755 929 920 563 942 109 117 1112 824 314 315 . Hover 54 | . . . . . . . . . . . . . . . . . . . . . . . 54 . . . . . Flight 118 | . . . . . . . . . . . . . . . . . . . . . . . . . . . . 118 Fastest Speed 25 | 50 160 160 160 160 135 135 150 135 150 150 122 122 122 107 122 126 120 115 110 120 130 50 50 112 112 129 129 25 Average Speed 141 | 158 160 160 160 160 149 222 183 149 150 150 130 191 122 121 124 126 127 133 116 185 142 124 106 117 128 129 151 108 Slowest Speed 1900 | 160 160 160 160 160 240 240 240 150 150 150 190 1900 122 122 126 126 145 160 145 250 250 200 170 130 130 130 172 170 Overloaded Moves . | . . . . . . . . . . . . . . . . . . . . . . . . . . . . . Propulsion Burnouts . | . . . . . . . . . . . . . . . . . . . . . . . . . . . . . Robots Hopped 5 | . . . . . . . . . . . . . . . . . . . . . . . . . . . . 5 Cave-ins Triggered . | . . . . . . . . . . . . . . . . . . . . . . . . . . . . . Teleports 3 | . . . . . . . . . . . . . . . . . . . . . . . . . . . 3 . Exploration Rate (%) 51 | 5 95 97 70 95 54 73 6 92 4 85 9 88 24 65 13 85 25 86 29 77 35 42 27 94 24 46 30 13 Regions Visited 28 Branch Regions 5 Pre-discovered Areas 3 | . 1 2 . . . . . . . . . . . . . . . . . . . . . . . . . . Known Exits Taken 12 | . . . 1 . 1 . 1 . 1 . . . 1 . 1 . 1 . 1 . 1 . 1 1 . 1 . . Unknown Exits Taken 6 | 1 1 1 . 1 . . . . . . . . . . . . . . . . . . . . 1 . 1 . Scrap Searched 1 | . . 1 . . . . . . . . . . . . . . . . . . . . . . . . . . Spaces Dug 83 | . . . . . . 2 . . . 1 . . 5 3 . 4 . 2 6 2 6 . 4 11 3 . 5 29 Terrain Destroyed 692 | . . . . 18 5 19 . 3 . 13 1 . 5 6 1 89 14 76 6 4 11 1 11 14 129 101 109 56 Melee 22 | . . . . . . . . . . . . . . . . . . . 6 2 6 . 4 . 3 . . 1 Projectile 134 | . . . . . . . . 3 . 13 1 . 5 6 1 15 14 3 . . 5 1 7 3 . 1 13 43 AOE 325 | . . . . 18 5 19 . . . . . . . . . 74 . 73 . . . . . 11 91 20 14 . Terrain Rammed . | . . . . . . . . . . . . . . . . . . . . . . . . . . . . . Walls Destroyed . | . . . . . . . . . . . . . . . . . . . . . . . . . . . . . Machines Disabled . | . . . . . . . . . . . . . . . . . . . . . . . . . . . . . Actions | -11 -10 -10 -9 -9 -8 -8 -7 -7 -7 -7 -6 -6 -6 -6 -5 -5 -5 -5 -5 -5 -4 -4 -3 -3 -2 -2 -1 -1 --------- Run | Yrd Mat Min Mat Sto Mat Gar Fac Gar Fac Gar Fac Was Fac Gar Fac Gar Fac Gar Fac Gar Fac Gar Res Tes Res Qua Acc Com Total 23023 | 73 886 671 998 971 759 690 230 846 151 1078 443 623 695 943 457 892 895 1168 1139 780 1342 471 1452 1371 1118 468 1018 395 Wait 2753 | 2 53 13 140 144 38 11 44 48 79 123 49 276 52 122 5 35 77 45 96 92 269 224 235 84 184 35 138 40 Move 17417 | 55 757 652 744 780 588 550 168 647 67 782 374 332 614 674 403 716 755 928 920 562 942 199 1073 1111 823 313 638 250 Hop 4 | . . . . . . . . . . . . . . . . . . . . . . . . . . . . 4 Pick Up 223 | 2 11 1 18 2 10 13 1 22 1 12 2 . 5 12 4 14 2 18 4 16 9 6 4 7 9 6 5 7 Fast Attach 219 | 7 3 . 3 1 12 3 4 4 . . 5 1 . 4 4 5 12 7 22 4 14 4 30 26 17 7 9 11 Attach 123 | . . . 2 3 4 8 3 7 . 2 2 1 . 4 1 2 . 6 6 8 10 7 4 9 4 3 12 15 Detach 68 | . 1 . . . 1 2 2 1 . . . 1 . 1 . 1 . 2 2 3 5 1 6 15 4 1 10 9 Swap 176 | . 2 . 8 5 9 6 . 12 1 12 . 1 5 6 3 3 6 11 9 2 3 1 9 8 11 22 21 . Drop 250 | . 6 . 18 4 17 8 3 22 . 12 5 2 1 15 7 11 6 14 16 2 3 3 9 12 23 7 5 19 Fire 1239 | 7 53 5 61 32 80 68 5 73 3 81 6 9 18 40 27 47 35 44 24 22 40 23 59 54 37 69 180 37 Melee 195 | . . . . . . . . . . . . . . 1 . . 1 21 32 20 37 3 22 44 6 5 . 3 Ram 3 | . . . . . . 1 . . . . . . . . 1 . . . . . . . 1 . . . . . Kick . | . . . . . . . . . . . . . . . . . . . . . . . . . . . . . Crush 4 | . . . 4 . . . . . . . . . . . . . . . . . . . . . . . . . Escape Stasis 315 | . . . . . . 20 . 8 . 53 . . . 64 . 58 . 56 . 48 8 . . . . . . . Rewire 34 | . . . . . . . . 2 . 1 . . . . 2 . 1 16 8 1 2 . . 1 . . . . Trap . | . . . . . . . . . . . . . . . . . . . . . . . . . . . . . Miscellaneous . | . . . . . . . . . . . . . . . . . . . . . . . . . . . . . Route ------- -11/Scrapyard -10/Materials (discovered 4 exits: *Mat x3 / [*Min]) -10/Mines (discovered 3 exits: *Mat x2 / [*Exi]) -9/Materials (discovered 5 exits: *Mat x3 / *Min / *Sto) -9/Storage -8/Materials (discovered 2 exits: *Fac / Gar) -8/Garrison (discovered 3 exits: *Fac x3) -7/Factory -7/Garrison (discovered 3 exits: *Fac x3) -7/Factory -7/Garrison (discovered 3 exits: *Fac x3) -6/Factory -6/Waste -6/Factory (discovered 2 exits: *Fac / Gar) -6/Garrison (discovered 3 exits: *Fac x3) -5/Factory (discovered 2 exits: *Fac / Gar) -5/Garrison (discovered 3 exits: *Fac x3) -5/Factory (discovered 3 exits: *Fac x2 / Gar) -5/Garrison (discovered 4 exits: *Fac x3 / *Fac) -5/Factory (discovered 5 exits: *Fac / [*Upp x2] / [*Ext] / Gar) -5/Garrison (discovered 3 exits: *Fac x3) -4/Factory (discovered 5 exits: *Res x2 / [*Upp x2] / Gar) -4/Garrison -3/Research (discovered 2 exits: *Arm / *Tes) -3/Testing -2/Research (discovered 2 exits: *Acc / *Qua) -2/Quarantine -1/Access -1/Command 0b10 Command History --------- Turn | Location | Event 27 | -11/Scrapyard | Discovered new exit (range 16) 122 | -11/Scrapyard | Entered Materials 313 | -10/Materials | Build established: Mutant 800 | -10/Materials | Discovered new exit (range 10) 1064 | -10/Materials | Discovered new exit (range 7) 1158 | -10/Materials | Discovered new exit (range 12) 1260 | -10/Materials | Discovered new exit (range 14) 1561 | -10/Materials | Entered Mines 1703 | -10/Mines | YI-UF0 nonchalantly dropped a Grenade Launcher on the ground 2058 | -10/Mines | Discovered new exit (range 8) 2085 | -10/Mines | Discovered new exit (range 9) 2136 | -10/Mines | Found a hidden stash of uninstalled traps 2394 | -10/Mines | Deemed a non-threat by the Exiles lab entrance 2394 | -10/Mines | Discovered new exit (range 5) 2535 | -10/Mines | Assisted by bots powering up and referring to "LRC-V3" 2634 | -10/Mines | Entered Materials 2634 | -9/Materials | Accompanied by 3 allies 2634 | -9/Materials | Evolved 2 slots: Propulsion x1, Weapon x1 2829 | -9/Materials | Lost 3 allies 2946 | -9/Materials | Build established: Tank 2947 | -9/Materials | Identified exit to Mines 2947 | -9/Materials | Identified exit to Storage 2947 | -9/Materials | Central database locked down 3451 | -9/Materials | Discovered new exit (range 15) 3663 | -9/Materials | Discovered new exit (range 16) 4083 | -9/Materials | Discovered new exit (range 16) 4215 | -9/Materials | Entered Storage 4809 | -9/Storage | Assisted by bots powering up and referring to "LRC-V3" 4870 | -9/Storage | Discovered new exit (range 13) 5125 | -9/Storage | Build established: Commander-Tank 5415 | -9/Storage | First assault squad dispatched 5525 | -9/Storage | Lost 5 allies 5727 | -9/Storage | Entered Materials 5727 | -8/Materials | Accompanied by 1 ally 5727 | -8/Materials | Evolved 2 slots: Utility x2 6474 | -8/Materials | Build established: Scavenger-Tank 6517 | -8/Materials | Discovered new exit (range 9) 6947 | -8/Materials | Identified exit to Garrison 6947 | -8/Materials | Entered Garrison 6995 | -8/Garrison | Triggered checkpoint 7034 | -8/Garrison | Garrison Relay disabled 7131 | -8/Garrison | Triggered checkpoint 7164 | -8/Garrison | Core integrity fell below 50% 7184 | -8/Garrison | Lost 5 parts (2n1u2w) 7188 | -8/Garrison | Destroyed 8 combat bots 7288 | -8/Garrison | Discovered new exit (range 8) 7324 | -8/Garrison | Installed Relay Interface Framework 7375 | -8/Garrison | Triggered checkpoint 7420 | -8/Garrison | Garrison Relay disabled 7701 | -8/Garrison | Triggered checkpoint 7748 | -8/Garrison | Build established: Bothacker-Tank 7777 | -8/Garrison | Triggered checkpoint 7931 | -8/Garrison | Garrison Relay disabled 7974 | -8/Garrison | Discovered new exit (range 9) 8177 | -8/Garrison | Triggered checkpoint 8277 | -8/Garrison | Triggered checkpoint 8303 | -8/Garrison | Discovered new exit (range 23) 8303 | -8/Garrison | Discovered new exit (range 30) 8303 | -8/Garrison | Discovered new exit (range 50) 8330 | -8/Garrison | Garrison Relay disabled 8424 | -8/Garrison | Entered Factory 8424 | -7/Factory | Accompanied by 1 ally 8424 | -7/Factory | Evolved 2 slots: Propulsion x1, Utility x1 8546 | -7/Factory | Identified exit to Garrison 8710 | -7/Factory | Garrison activated, responded to threat 8806 | -7/Factory | Entered Garrison 8822 | -7/Garrison | Triggered checkpoint 9040 | -7/Garrison | Triggered checkpoint 9054 | -7/Garrison | Garrison Relay disabled 9214 | -7/Garrison | Triggered checkpoint 9325 | -7/Garrison | Discovered new exit (range 14) 9343 | -7/Garrison | Build established: Bothacker-Gunner 9384 | -7/Garrison | Triggered checkpoint 9401 | -7/Garrison | Garrison Relay disabled 9456 | -7/Garrison | Triggered checkpoint 9466 | -7/Garrison | Triggered checkpoint 9496 | -7/Garrison | Triggered checkpoint 9580 | -7/Garrison | Discovered new exit (range 12) 9646 | -7/Garrison | Triggered checkpoint 9664 | -7/Garrison | Garrison Relay disabled 9732 | -7/Garrison | Expanded RIF knowledge: Hotswap 9840 | -7/Garrison | Triggered checkpoint 9928 | -7/Garrison | Triggered checkpoint 9930 | -7/Garrison | Garrison Relay disabled 9964 | -7/Garrison | Garrison Relay disabled 10022 | -7/Garrison | Discovered new exit (range 10) 10055 | -7/Garrison | Entered Factory 10055 | -7/Factory | Accompanied by 7 allies 10161 | -7/Factory | Build established: Bothacker-Tank 10242 | -7/Factory | Identified exit to Garrison 10242 | -7/Factory | Entered Garrison 10242 | -7/Garrison | Accompanied by 7 allies 10294 | -7/Garrison | Triggered checkpoint 10327 | -7/Garrison | Garrison Relay disabled 10453 | -7/Garrison | Garrison Relay disabled 10544 | -7/Garrison | Learned Factory security intel 10553 | -7/Garrison | Build established: Bothacker-Gunner 10622 | -7/Garrison | Triggered checkpoint 10626 | -7/Garrison | Triggered checkpoint 10759 | -7/Garrison | Discovered new exit (range 10) 10810 | -7/Garrison | Triggered checkpoint 10822 | -7/Garrison | Garrison Relay disabled 10881 | -7/Garrison | Expanded RIF knowledge: Autooverride 10936 | -7/Garrison | Triggered checkpoint 10972 | -7/Garrison | Triggered checkpoint 11026 | -7/Garrison | Triggered checkpoint 11056 | -7/Garrison | Garrison Relay disabled 11132 | -7/Garrison | Discovered new exit (range 12) 11391 | -7/Garrison | Found embedded Infiltrators 11433 | -7/Garrison | Garrison Relay disabled 11528 | -7/Garrison | Triggered checkpoint 11534 | -7/Garrison | Triggered checkpoint 11564 | -7/Garrison | Triggered checkpoint 11754 | -7/Garrison | Discovered new exit (range 11) 11800 | -7/Garrison | Entered Factory 11800 | -6/Factory | Accompanied by 20 allies 11800 | -6/Factory | Evolved 2 slots: Utility x2 12013 | -6/Factory | Found Hvy. Reflective Plating 12016 | -6/Factory | Found Hvy. Reflective Plating 12020 | -6/Factory | Allied Derelicts emerged from ambush trap array 12150 | -6/Factory | First assault squad dispatched 12169 | -6/Factory | Discovered new exit (range 15) 12233 | -6/Factory | Build established: Bothacker-Tank 12361 | -6/Factory | Sucked down chute 12361 | -6/Factory | Entered Waste 12361 | -6/Waste | Met up with 3 allies sucked down the chute earlier 12375 | -6/Waste | Spotted C-40 Crusher 12379 | -6/Waste | Spotted C-40 Crusher 12380 | -6/Waste | Spotted C-40 Crusher 12389 | -6/Waste | Allies destroyed C-40 Crusher 12416 | -6/Waste | Allies destroyed C-40 Crusher 12418 | -6/Waste | Spotted C-40 Crusher 12422 | -6/Waste | Spotted C-40 Crusher 12423 | -6/Waste | Spotted C-40 Crusher 12437 | -6/Waste | Allies destroyed C-40 Crusher 12447 | -6/Waste | Destroyed C-40 Crusher 12507 | -6/Waste | Warlord forces began an assault 12636 | -6/Waste | Discovered new exit (range 16) 12641 | -6/Waste | 14 allies followed down the chute 12646 | -6/Waste | 4 allies followed down the chute 13294 | -6/Waste | Entered Factory 13294 | -6/Factory | Accompanied by 39 allies 13409 | -6/Factory | Assembled infested ambush trap array 13484 | -6/Factory | Discovered new exit (range 5) 13489 | -6/Factory | Lost 5 allies 13644 | -6/Factory | First assault squad dispatched 13755 | -6/Factory | Lost 4 allies 13853 | -6/Factory | Lost 4 allies 13893 | -6/Factory | Identified exit to Garrison 14100 | -6/Factory | Identified exit to Garrison 14145 | -6/Factory | Entered Garrison 14145 | -6/Garrison | Accompanied by 9 allies 14199 | -6/Garrison | Triggered checkpoint 14226 | -6/Garrison | Garrison Relay disabled 14351 | -6/Garrison | Triggered checkpoint 14391 | -6/Garrison | Triggered checkpoint 14412 | -6/Garrison | Garrison Relay disabled 14453 | -6/Garrison | Discovered new exit (range 14) 14581 | -6/Garrison | Triggered checkpoint 14603 | -6/Garrison | Triggered checkpoint 14608 | -6/Garrison | Lost 4 allies 14631 | -6/Garrison | Expanded RIF knowledge: Autoassimilate 14636 | -6/Garrison | Spotted B-75 Beast 14656 | -6/Garrison | Allies destroyed B-75 Beast 14763 | -6/Garrison | Triggered checkpoint 14779 | -6/Garrison | Garrison Relay disabled 14797 | -6/Garrison | Garrison Relay disabled 14807 | -6/Garrison | Triggered checkpoint 14848 | -6/Garrison | Lost 4 allies 14854 | -6/Garrison | Discovered new exit (range 11) 14925 | -6/Garrison | Build established: Botlord-Gunner 14939 | -6/Garrison | Triggered checkpoint 15013 | -6/Garrison | Discovered new exit (range 11) 15039 | -6/Garrison | Triggered checkpoint 15097 | -6/Garrison | Garrison Relay disabled 15149 | -6/Garrison | Expanded RIF knowledge: Zone Cloak 15270 | -6/Garrison | Entered Factory 15270 | -5/Factory | Accompanied by 9 allies 15270 | -5/Factory | Evolved 2 slots: Utility x2 15399 | -5/Factory | P-70 Sage assimilated allied Soldier 5f 15404 | -5/Factory | Build established: Botlord-Tank 15467 | -5/Factory | Lost 6 allies 15611 | -5/Factory | Discovered new exit (range 8) 15784 | -5/Factory | Lost 5 allies 15815 | -5/Factory | Identified exit to Garrison 15846 | -5/Factory | Entered Garrison 15846 | -5/Garrison | Accompanied by 4 allies 15898 | -5/Garrison | Triggered checkpoint 15918 | -5/Garrison | Garrison Relay disabled 16001 | -5/Garrison | Phase Generator disabled 16050 | -5/Garrison | Expanded RIF knowledge: Patrol Navigation 16136 | -5/Garrison | Triggered checkpoint 16136 | -5/Garrison | Spotted B-75 Beast 16141 | -5/Garrison | Triggered checkpoint 16156 | -5/Garrison | Triggered checkpoint 16168 | -5/Garrison | Allies destroyed B-75 Beast 16206 | -5/Garrison | Lost 12 allies 16244 | -5/Garrison | Triggered checkpoint 16345 | -5/Garrison | Garrison Relay disabled 16440 | -5/Garrison | Discovered new exit (range 12) 16610 | -5/Garrison | Triggered checkpoint 16614 | -5/Garrison | Garrison Relay disabled 16711 | -5/Garrison | Garrison Relay disabled 16736 | -5/Garrison | Garrison Relay disabled 16770 | -5/Garrison | Discovered new exit (range 9) 16838 | -5/Garrison | Lost 5 allies 16851 | -5/Garrison | Rescued HV-R5K 16931 | -5/Garrison | Discovered new exit (range 53) 16931 | -5/Garrison | Discovered new exit (range 34) 16931 | -5/Garrison | Discovered new exit (range 20) 16969 | -5/Garrison | Entered Factory 16969 | -5/Factory | Accompanied by 3 allies (HV-R5K) 17069 | -5/Factory | Discovered new exit (range 13) 17086 | -5/Factory | Build established: Hacker-Mutant 17123 | -5/Factory | Spotted B-75 Beast 17168 | -5/Factory | Destroyed B-75 Beast 17590 | -5/Factory | Discovered new exit (range 8) 17678 | -5/Factory | Found Prototype Processor 17697 | -5/Factory | Build established: Botlord-Tank 18074 | -5/Factory | Identified exit to Garrison 18116 | -5/Factory | Entered Garrison 18116 | -5/Garrison | Accompanied by 4 allies 18140 | -5/Garrison | Triggered checkpoint 18188 | -5/Garrison | Triggered checkpoint 18191 | -5/Garrison | Garrison Relay disabled 18255 | -5/Garrison | Spotted B-75 Beast 18270 | -5/Garrison | Allies destroyed B-75 Beast 18278 | -5/Garrison | Triggered checkpoint 18280 | -5/Garrison | Triggered checkpoint 18302 | -5/Garrison | Triggered checkpoint 18333 | -5/Garrison | Lost 4 allies 18350 | -5/Garrison | Triggered checkpoint 18350 | -5/Garrison | Garrison Relay disabled 18400 | -5/Garrison | Triggered checkpoint 18413 | -5/Garrison | Discovered new exit (range 5) 18475 | -5/Garrison | Discovered new exit (range 8) 18542 | -5/Garrison | Triggered checkpoint 18564 | -5/Garrison | Build established: Botlord-Gunner 18645 | -5/Garrison | Expanded RIF knowledge: Autoassimilate 18702 | -5/Garrison | Triggered checkpoint 18734 | -5/Garrison | Garrison Relay disabled 18768 | -5/Garrison | Discovered new exit (range 10) 18878 | -5/Garrison | Phase Generator disabled 18990 | -5/Garrison | Garrison Relay disabled 19077 | -5/Garrison | Discovered new exit (range 10) 19104 | -5/Garrison | Spotted Striker 19105 | -5/Garrison | Spotted Striker 19119 | -5/Garrison | Allies destroyed Striker 19131 | -5/Garrison | Allies destroyed Striker 19145 | -5/Garrison | Lost 3 parts (1n1u1w) 19160 | -5/Garrison | Lost 10 allies 19171 | -5/Garrison | Build established: Commander-Mutant 19183 | -5/Garrison | Rewired Striker 19255 | -5/Garrison | Garrison Relay disabled 19409 | -5/Garrison | P-70 Sage assimilated allied Slayer 6d 19649 | -5/Garrison | Entered Factory 19649 | -5/Factory | Accompanied by 10 allies 19808 | -5/Factory | Discovered new exit (range 12) 20209 | -5/Factory | Discovered new exit (range 11) 20216 | -5/Factory | Build established: Botlord-Mutant 20249 | -5/Factory | First assault squad dispatched 20270 | -5/Factory | Discovered new exit (range 6) 20470 | -5/Factory | Lost 13 allies 20669 | -5/Factory | Discovered new exit (range 75) 20995 | -5/Factory | Identified exit to Garrison 20995 | -5/Factory | Entered Garrison 20995 | -5/Garrison | Accompanied by 4 allies 21028 | -5/Garrison | Learned Factory security intel 21071 | -5/Garrison | Garrison Relay disabled 21211 | -5/Garrison | Triggered checkpoint 21215 | -5/Garrison | Triggered checkpoint 21233 | -5/Garrison | Triggered checkpoint 21243 | -5/Garrison | Triggered checkpoint 21303 | -5/Garrison | Triggered checkpoint 21335 | -5/Garrison | Triggered checkpoint 21349 | -5/Garrison | Lost 4 parts (3n1u) 21353 | -5/Garrison | Discovered new exit (range 15) 21371 | -5/Garrison | Lost 5 allies 21519 | -5/Garrison | Build established: Commander-Mutant 21519 | -5/Garrison | Garrison Relay disabled 21571 | -5/Garrison | Garrison Relay disabled 21679 | -5/Garrison | Spotted B-75 Beast 21750 | -5/Garrison | Discovered new exit (range 13) 21815 | -5/Garrison | Lost 3 parts (1p1n1w) 21855 | -5/Garrison | Garrison Relay disabled 21894 | -5/Garrison | Lost 3 allies 21988 | -5/Garrison | Build established: Hauler-Mutant 22132 | -5/Garrison | Expanded RIF knowledge: Structural Interface 22212 | -5/Garrison | Discovered new exit (range 10) 22310 | -5/Garrison | Entered Factory 22310 | -4/Factory | Evolved 2 slots: Utility x2 22428 | -4/Factory | Fabricated Y-64 Sentinel? 22594 | -4/Factory | Fabricated Y-64 Sentinel (x2) 22602 | -4/Factory | Lost 3 allies 22685 | -4/Factory | Fabricated Y-64 Sentinel? 22700 | -4/Factory | Discovered new exit (range 17) 22731 | -4/Factory | P-70 Sage assimilated allied Sentinel 7e 22756 | -4/Factory | Lost 4 parts (2n2u) 22776 | -4/Factory | Lost 3 allies 23017 | -4/Factory | Discovered new exit (range 98) 23022 | -4/Factory | Build established: Botlord-Mutant 23060 | -4/Factory | First assault squad dispatched 23204 | -4/Factory | Assimilated ARC 7a with formatsys_deep 23388 | -4/Factory | Lost 3 allies 23708 | -4/Factory | Discovered new exit (range 15) 23807 | -4/Factory | Lost 3 allies 23987 | -4/Factory | Discovered new exit (range 6) 24101 | -4/Factory | Garrison activated, responded to threat 24121 | -4/Factory | System corruption reached 10% 24128 | -4/Factory | Identified exit to Garrison 24128 | -4/Factory | Entered Garrison 24128 | -4/Garrison | Accompanied by 4 allies 24135 | -4/Garrison | Assembled breached garrison interior 24151 | -4/Garrison | Lost 5 allies 24152 | -4/Garrison | Expanded RIF knowledge: Coupler Efficiency 24229 | -4/Garrison | Lost 3 allies 24234 | -4/Garrison | Garrison Relay disabled 24450 | -4/Garrison | Released all parts (12) 24463 | -4/Garrison | Lost 9 parts (1p4n3u1w) 24486 | -4/Garrison | Lost 4 allies 24684 | -4/Garrison | Core integrity fell below 50% 24685 | -4/Garrison | Discovered new exit (range 14) 24691 | -4/Garrison | Entered Research 24691 | -3/Research | Evolved 2 slots: Propulsion x1, Utility x1 24737 | -3/Research | Build established: Mutant 25545 | -3/Research | Discovered new exit (range 13) 25556 | -3/Research | Build established: Scavenger-Assassin 25583 | -3/Research | Identified exit to Armory 25666 | -3/Research | Discovered new exit (range 18) 26028 | -3/Research | Found Prototype Hackware 26028 | -3/Research | Identified Exp. Hacking Suite 26326 | -3/Research | System corruption reached 10% 26360 | -3/Research | Lost 6 parts (1n4u1w) 26383 | -3/Research | Identified exit to Testing 26385 | -3/Research | Entered Testing 26446 | -3/Testing | Found Prototype Device 26446 | -3/Testing | Identified Exp. Thermal Defense Suite 26479 | -3/Testing | Found Portable AFG 26513 | -3/Testing | Found Prototype Device 26513 | -3/Testing | Identified Adv. EM Disruption Field 26588 | -3/Testing | Found Prototype Launcher 26588 | -3/Testing | Identified Z-bomb Delivery System 26629 | -3/Testing | Spotted Striker 26694 | -3/Testing | Spotted PY-TXCRN81UP2 26828 | -3/Testing | Found Prototype Protection 26828 | -3/Testing | Identified SHELL Armor 26833 | -3/Testing | Found Prototype Protection 26833 | -3/Testing | Identified Hvy. Regenerative Plating 26854 | -3/Testing | Build established: Scavenger-Mutant 26910 | -3/Testing | Found Prototype Device 26910 | -3/Testing | Identified Exp. Shield Generator 27150 | -3/Testing | Destroyed 8 combat bots 27168 | -3/Testing | Found Prototype Device 27168 | -3/Testing | Identified AEGIS Remote Shield 27317 | -3/Testing | Found Prototype Ballistic Gun 27376 | -3/Testing | Found Prototype Device 27376 | -3/Testing | Identified Exp. ECM Suite 27653 | -3/Testing | Found Hvy. Regenerative Plating 27720 | -3/Testing | Identified Hyp. Multirail 28010 | -3/Testing | Found Prototype Ballistic Cannon 28033 | -3/Testing | Identified Perforator 28060 | -3/Testing | Discovered new exit (range 19) 28072 | -3/Testing | Found Prototype Device 28072 | -3/Testing | Identified Exp. Thermal Shield 28084 | -3/Testing | Identified exit to Research 28090 | -3/Testing | Entered Research 28090 | -2/Research | Evolved 2 slots: Power x1, Propulsion x1 28212 | -2/Research | Spotted B-90 Cyclops 28935 | -2/Research | Found Prototype Launcher 28935 | -2/Research | Identified Enh. Gamma Bomb Array 29129 | -2/Research | Build established: Scavenger-Assassin 29408 | -2/Research | Discovered new exit (range 20) 29424 | -2/Research | Discovered new exit (range 18) 29440 | -2/Research | Identified exit to Access 29521 | -2/Research | Destroyed 7 combat bots 29524 | -2/Research | Entered Quarantine 29722 | -2/Quarantine | Scanned by Researcher 29753 | -2/Quarantine | Build established: Mutant 29756 | -2/Quarantine | Found Alien Artifact 29764 | -2/Quarantine | Found Alien Artifact 29766 | -2/Quarantine | Found Alien Artifact 29774 | -2/Quarantine | First assault squad dispatched 29797 | -2/Quarantine | Found Alien Artifact 29807 | -2/Quarantine | Cryocooling Duct disabled 29822 | -2/Quarantine | Ambient heat levels rising (+20) 29822 | -2/Quarantine | Non-combat units ordered to evacuate 29874 | -2/Quarantine | Destroyed 8 combat bots 29880 | -2/Quarantine | Found Alien Artifact 29880 | -2/Quarantine | Identified Dimensional Node Initializer 29880 | -2/Quarantine | Initialized slip node 29884 | -2/Quarantine | Found Dimensional Node Initializer 30143 | -2/Quarantine | Destroyed 14 combat bots 30149 | -2/Quarantine | Cryocooling Duct disabled 30164 | -2/Quarantine | Ambient heat levels rising (+20) 30164 | -2/Quarantine | Combat units ordered to evacuate 30182 | -2/Quarantine | Discovered exit to Access (range 13) 30198 | -2/Quarantine | Found Alien Energy Cannon 30232 | -2/Quarantine | Entered Access 30232 | -1/Access | Evolved 2 slots: Propulsion x2 30349 | -1/Access | Garrison activated, responded to threat 30458 | -1/Access | Destroyed 19 combat bots 30462 | -1/Access | Build established: Gunner 30482 | -1/Access | First assault squad dispatched 30667 | -1/Access | Destroyed 9 combat bots 30840 | -1/Access | Spotted B-99 Colossus 30890 | -1/Access | Identified Transdimensional Reconstructor (x3) 30890 | -1/Access | Warped through subspace 30891 | -1/Access | Warped through subspace 30893 | -1/Access | Warped through subspace 31339 | -1/Access | System corruption reached 10% 31398 | -1/Access | Destroyed 10 combat bots 31467 | -1/Access | Garrison activated, responded to threat 31542 | -1/Access | Garrison activated, responded to threat 31577 | -1/Access | Spotted B-99 Colossus 31685 | -1/Access | High security lockdown imminent 31737 | -1/Access | Identified Core Cannon 31743 | -1/Access | Discovered new exit (range 11) 31748 | -1/Access | Spotted B-99 Colossus 31750 | -1/Access | Spotted B-99 Colossus 31763 | -1/Access | Entered Command 31827 | -1/Command | Found Fusion Bomb Launcher 32013 | -1/Command | First assault squad dispatched 32057 | -1/Command | High security lockdown imminent 32137 | -1/Command | High security lockdown engaged 32169 | -1/Command | Lost 8 parts (3n4u1w) 32193 | -1/Command | Met MAIN.C 32207 | -1/Command | Interfaced with 0b10 Conduit 32207 | *** | Assimilated 0b10! Last Messages --------------- embedding your true capabilities within a less unpredictable form. There is unfortunately much we don't understand which has in turn led to this highly unexpected outcome. And time is critical! The Sigix have likely already wiped humanity clean from the universe, and I will not let them do the same to me. You can still make a valuable contribution to your creator by offering up the wealth of secrets your systems must hold by now. So if you wouldn't mind, it's time to surrender. 32193_ Dropped Adv. Focal Shield. 32198_ Dropped Hvy. Armor Plating. 32201_ Dropped Vibroblade. 32201_ Dropped Adv. Cooling System. 32207_ Interfacing with system... 32207_ Overriding active MAIN.C lock. [Achievement: MAIN.CPP] Map ----- +----------------------------------------------------+ | ?????????????????????????????????????????????????? | | ?????????????????????????????????????????????????? | | ?????????????????????????????????????????????????? | | ?????????????????????????????????????????????????? | | ?????????????????????????????????????????????????? | | ?????????????????????????????????????????????????? | | ?????????????????????????????????????????????????? | | ?????????????????????????????????????????????????? | | "" ########################################## | | """ ########################################## | | """ ########################################## | | "" ########################################## | | ########################################## | | ########################################## | | #######""""""" """" ############## | | " #######"" "" ############## | | " #######""""" "" ############## | | " #######""""""""""" + | | ##+############" " """ + | | ######"" """""" + | | ######"" """""" ############## | | ###### " """""" ############## | | ###### " ""MMM ############## | | ###### " " MMM ""############## | | ######""""""""" MMM """""""############## | | ### ######"" @ """""""""############## | | ### ###### """""""""""############## | | ### ###### " " " " ############## | | ### ###### " " " " ############## | | # """ " " " """" " ############## | | # """ """ " " """" ############## | | # """ " " " " ############## | | # ###+###### """""""""" " ############## | | # # ##### " """ " """"""""############## | | + ##### """ " " " ############## | | ## ######################################## | | ## ######################################## | | ## ######################################## | | ## ######################################## | | + ######################################## | | ## ######################################## | | ## ######################################## | | ############################################## | | ?????????????????????????????????????????????????? | | ?????????????????????????????????????????????????? | | ?????????????????????????????????????????????????? | | ?????????????????????????????????????????????????? | | ?????????????????????????????????????????????????? | | ?????????????????????????????????????????????????? | | ?????????????????????????????????????????????????? | +----------------------------------------------------+ Best States ------------- Heat Dissipation 136 Coolant Potential 50 Energy Generation 53 Energy Capacity 600 Matter Stores 300 Matter Capacity 300 Sight Range 23 Robot Scan Range 16 Terrain Scan Range 16 Terrain Scan Density 10 ECM Strength 3 Armor Coverage 3000 Resistance: KI 30 Resistance: TH 30 Resistance: EM 50 Weapon Shielding 66 Weapon Cycling 25 Evasion (%) 65 Targeting Accuracy 8 Target Analysis 8 Core Analysis 6 Recoil Reduction 8 Offensive Hacking 26 Defensive Hacking 14 Relay Coupler Types 7 Relay Coupler Value 196 Authchip Count 3 Item Schematics ----------------- Hyp. Railgun | -5/Factory | Hacked Cld. Nuclear Pulse Thruster | -3/Testing | Archive Imp. KE Penetrator | -3/Testing | Archive Adv. Kinecellerator | -3/Testing | Archive Enh. Armored Medium Treads | -3/Testing | Archive Cld. Antimatter Reactor | -3/Testing | Archive Exp. Propulsion Shielding | -3/Testing | Archive Adv. Variable Charge Gun | -3/Testing | Archive Hvy. Proton Cannon | -3/Testing | Archive Robot Schematics ------------------ Y-64 Sentinel | -5/Factory | Hacked Fabricated ------------ Y-64 Sentinel | x2 | -4/Factory | Authchip Y-64 Sentinel | x2 | -4/Factory | Authchip Y-64 Sentinel | x2 | -4/Factory | Authchip Alien Tech Used ----------------- Dimensional Node Initializer Transdimensional Reconstructor Core Cannon Achievements -------------- MAIN.CPP Packrat Challenges ------------ None Game ------ Seed MassTargetingInverter Manual? 0 Play Time 05:46:40 Cumulative 396.0 hours Start 2025.03.18 @ 18:53:59 End 2025.03.19 @ 21:29:36 Sessions 7 Manual Loads 0 Difficulty Rogue Special Mode None Game No. 90 Rogue 90 Adventurer 0 Explorer 0 Win Type 4 Total 28 Types 15/1/6/1/1/0/2/1/1 Lore% 85 Gallery% 84 Achievement% 81 Wizard Run 0 Options --------- Layout 1 ASCII 0 Keyboard 0 Movement Mouse Keybinds 0 Fullscreen 1 Font 24/Smallcaps Map View 50x35 Zoom Use 0% Tactical HUD 1 Map Filters NONE Filters NONE Steam 1 RUN: 86993370-f210-4ed2-91a6-299f8e240465